[Event "Titled Tuesday Blitz January 03 Early 2023"]
[White "Zherebtsova, Alexandra"]
[Black "Kravtsiv, Martyn"]
[WhiteFideId "24129518"]
[BlackFideId "14113147"]
[WhiteElo "2155"]
[BlackElo "2598"]
[Result "0-1"]
[Round "01"]
[TimeControl "180+2"]
[Date "2023.01.03"]
[WhiteClock "0:00:02"]
[BlackClock "0:00:17"]

1. d4 {[%clk 0:02:57]}  d5 {[%clk 0:02:59]} 2. Nf3 {[%clk 0:02:55]}  Nf6 {[%clk 0:02:58]} 3. c4 {[%clk 0:02:55]}  e6 {[%clk 0:02:58]} 4. e3 {[%clk 0:02:54]}  Nbd7 {[%clk 0:02:56]} 5. b3 {[%clk 0:02:52]}  Bb4+ {[%clk 0:02:52]} 6. Nbd2 {[%clk 0:02:50]}  b6 {[%clk 0:02:46]} 7. Bb2 {[%clk 0:02:47]}  Bb7 {[%clk 0:02:45]} 8. a3 {[%clk 0:02:44]}  Be7 {[%clk 0:02:42]} 9. Bd3 {[%clk 0:02:37]}  O-O {[%clk 0:02:41]} 10. O-O {[%clk 0:02:35]}  c5 {[%clk 0:02:39]} 11. cxd5 {[%clk 0:02:34]}  Nxd5 {[%clk 0:02:37]} 12. Qe2 {[%clk 0:02:27]}  Rc8 {[%clk 0:02:35]} 13. Rac1 {[%clk 0:02:20]}  h6 {[%clk 0:02:25]} 14. Bb1 {[%clk 0:02:10]}  cxd4 {[%clk 0:02:21]} 15. Nxd4 {[%clk 0:02:08]}  Rxc1 {[%clk 0:02:21]} 16. Rxc1 {[%clk 0:02:08]}  Qa8 {[%clk 0:02:20]} 17. f3 {[%clk 0:02:04]}  Rc8 {[%clk 0:02:19]} 18. Rxc8+ {[%clk 0:02:01]}  Qxc8 {[%clk 0:02:18]} 19. Qd3 {[%clk 0:02:01]}  N5f6 {[%clk 0:02:10]} 20. b4 {[%clk 0:01:55]}  Ne5 {[%clk 0:02:02]} 21. Qc2 {[%clk 0:01:46]}  Qxc2 {[%clk 0:02:01]} 22. Bxc2 {[%clk 0:01:45]}  Nd5 {[%clk 0:02:01]} 23. Kf2 {[%clk 0:01:42]}  a5 {[%clk 0:01:56]} 24. b5 {[%clk 0:01:32]}  Bc5 {[%clk 0:01:49]} 25. h3 {[%clk 0:01:24]}  Bc8 {[%clk 0:01:24]} 26. f4 {[%clk 0:01:22]}  Nd7 {[%clk 0:01:20]} 27. N2b3 {[%clk 0:01:20]}  Bf8 {[%clk 0:01:18]} 28. Nc6 {[%clk 0:01:14]}  Nc5 {[%clk 0:01:15]} 29. Nbd4 {[%clk 0:01:11]}  Bd7 {[%clk 0:01:08]} 30. g3 {[%clk 0:01:01]}  Nc7 {[%clk 0:01:07]} 31. a4 {[%clk 0:00:53]}  Nd5 {[%clk 0:01:07]} 32. e4 {[%clk 0:00:34]}  Nb4 {[%clk 0:00:55]} 33. Nxb4 {[%clk 0:00:34]}  axb4 {[%clk 0:00:56]} 34. Ke3 {[%clk 0:00:20]}  Bc8 {[%clk 0:00:56]} 35. Ba1 {[%clk 0:00:11]}  Bb7 {[%clk 0:00:56]} 36. Nc6 {[%clk 0:00:11]}  b3 {[%clk 0:00:53]} 37. Bd1 {[%clk 0:00:11]}  Nxa4 {[%clk 0:00:41]} 38. Bxb3 {[%clk 0:00:11]}  Nc5 {[%clk 0:00:41]} 39. Bc2 {[%clk 0:00:10]}  f6 {[%clk 0:00:37]} 40. Nd8 {[%clk 0:00:10]}  Bc8 {[%clk 0:00:37]} 41. Bd4 {[%clk 0:00:10]}  Bd7 {[%clk 0:00:37]} 42. Nc6 {[%clk 0:00:08]}  Kf7 {[%clk 0:00:36]} 43. Kd2 {[%clk 0:00:09]}  Bd6 {[%clk 0:00:28]} 44. Kc3 {[%clk 0:00:08]}  Be8 {[%clk 0:00:22]} 45. e5 {[%clk 0:00:08]}  fxe5 {[%clk 0:00:20]} 46. fxe5 {[%clk 0:00:09]}  Bc7 {[%clk 0:00:18]} 47. Bxc5 {[%clk 0:00:06]}  bxc5 {[%clk 0:00:18]} 48. Kc4 {[%clk 0:00:07]}  Bb6 {[%clk 0:00:19]} 49. Nb8 {[%clk 0:00:05]}  Bc7 {[%clk 0:00:16]} 50. Na6 {[%clk 0:00:03]}  Bxe5 {[%clk 0:00:15]} 51. Kxc5 {[%clk 0:00:03]}  Bxg3 {[%clk 0:00:15]} 52. b6 {[%clk 0:00:03]}  Bf2+ {[%clk 0:00:15]} 53. Kd6 {[%clk 0:00:01]}  Bxb6 {[%clk 0:00:16]} 54. Nc7 {[%clk 0:00:01]}  Bxc7+ {[%clk 0:00:16]} 55. Kxc7 {[%clk 0:00:02]}  Kf6 {[%clk 0:00:16]} 56. Kd6 {[%clk 0:00:02]}  e5 {[%clk 0:00:16]} 57. Be4 {[%clk 0:00:01]}  Bf7 {[%clk 0:00:16]} 58. h4 {[%clk 0:00:01]}  g5 {[%clk 0:00:16]} 59. hxg5+ {[%clk 0:00:01]}  hxg5 {[%clk 0:00:17]} 60. Bf3 {[%clk 0:00:02]}  Be6 {[%clk 0:00:17]} 61. Be4 {[%clk 0:00:02]}  g4 {[%clk 0:00:17]} 0-1


[Site "https://www.chess.com"]

[Event "Titled Tuesday Blitz January 03 Early 2023"]
[White "Boruchovsky, Avital"]
[Black "Begunov, Konstantin"]
[WhiteFideId "2800055"]
[BlackFideId "4118510"]
[WhiteElo "2539"]
[BlackElo "2325"]
[Result "1-0"]
[Round "01"]
[TimeControl "180+2"]
[Date "2023.01.03"]
[WhiteClock "0:00:40"]
[BlackClock "0:00:52"]

1. g3 {[%clk 0:02:59]}  d5 {[%clk 0:02:59]} 2. d4 {[%clk 0:02:58]}  c6 {[%clk 0:03:00]} 3. Bg2 {[%clk 0:02:59]}  Bg4 {[%clk 0:03:00]} 4. h3 {[%clk 0:02:58]}  Bh5 {[%clk 0:03:00]} 5. Nf3 {[%clk 0:02:58]}  e6 {[%clk 0:03:00]} 6. g4 {[%clk 0:02:57]}  Bg6 {[%clk 0:03:00]} 7. Ne5 {[%clk 0:02:57]}  Nd7 {[%clk 0:02:57]} 8. Nxg6 {[%clk 0:02:57]}  hxg6 {[%clk 0:02:58]} 9. Nd2 {[%clk 0:02:54]}  Ngf6 {[%clk 0:02:54]} 10. b3 {[%clk 0:02:48]}  Bb4 {[%clk 0:02:41]} 11. Bb2 {[%clk 0:02:48]}  Ne4 {[%clk 0:02:35]} 12. Bxe4 {[%clk 0:02:44]}  dxe4 {[%clk 0:02:36]} 13. c3 {[%clk 0:02:44]}  Be7 {[%clk 0:02:31]} 14. Nxe4 {[%clk 0:02:44]}  Qc7 {[%clk 0:02:25]} 15. Qd2 {[%clk 0:02:42]}  e5 {[%clk 0:02:22]} 16. O-O-O {[%clk 0:02:30]}  O-O-O {[%clk 0:02:22]} 17. Kb1 {[%clk 0:02:29]}  exd4 {[%clk 0:02:17]} 18. cxd4 {[%clk 0:02:29]}  Nf6 {[%clk 0:02:12]} 19. Ng5 {[%clk 0:02:28]}  Bd6 {[%clk 0:02:08]} 20. e3 {[%clk 0:01:40]}  Rd7 {[%clk 0:02:06]} 21. Qc2 {[%clk 0:01:40]}  Qa5 {[%clk 0:02:00]} 22. f4 {[%clk 0:01:36]}  Re8 {[%clk 0:01:55]} 23. Bc1 {[%clk 0:01:35]}  Ba3 {[%clk 0:01:48]} 24. Rhe1 {[%clk 0:01:29]}  Nd5 {[%clk 0:01:45]} 25. Bxa3 {[%clk 0:01:12]}  Nc3+ {[%clk 0:01:44]} 26. Kb2 {[%clk 0:01:09]}  Nxd1+ {[%clk 0:01:39]} 27. Qxd1 {[%clk 0:01:01]}  Rxd4 {[%clk 0:01:32]} 28. Qxd4 {[%clk 0:01:01]}  Qxe1 {[%clk 0:01:31]} 29. Nxf7 {[%clk 0:01:01]}  Qe2+ {[%clk 0:01:11]} 30. Kb1 {[%clk 0:01:01]}  Qe1+ {[%clk 0:01:10]} 31. Bc1 {[%clk 0:01:01]}  Kb8 {[%clk 0:01:11]} 32. Ne5 {[%clk 0:01:00]}  g5 {[%clk 0:01:05]} 33. Qd7 {[%clk 0:00:54]}  Rc8 {[%clk 0:01:03]} 34. f5 {[%clk 0:00:51]}  Qg3 {[%clk 0:01:00]} 35. Qxg7 {[%clk 0:00:50]}  Rd8 {[%clk 0:00:57]} 36. Qe7 {[%clk 0:00:46]}  Rd1 {[%clk 0:00:55]} 37. Nd7+ {[%clk 0:00:41]}  Kc8 {[%clk 0:00:52]} 38. Qe8+ {[%clk 0:00:40]}  Kc7 {[%clk 0:00:52]} 39. Qb8+ {[%clk 0:00:40]} 1-0


[Site "https://www.chess.com"]

[Event "Titled Tuesday Blitz January 03 Early 2023"]
[White "Bacrot, Etienne"]
[Black "Kaplan, Avi Harrison"]
[WhiteFideId "605506"]
[BlackFideId "30934559"]
[WhiteElo "2667"]
[BlackElo "2146"]
[Result "1-0"]
[Round "01"]
[TimeControl "180+2"]
[Date "2023.01.03"]
[WhiteClock "0:00:28"]
[BlackClock "0:00:09"]

1. e4 {[%clk 0:03:00]}  c5 {[%clk 0:02:56]} 2. Nf3 {[%clk 0:03:00]}  d6 {[%clk 0:02:56]} 3. Bb5+ {[%clk 0:03:00]}  Nd7 {[%clk 0:02:56]} 4. O-O {[%clk 0:03:00]}  a6 {[%clk 0:02:54]} 5. Bxd7+ {[%clk 0:02:57]}  Bxd7 {[%clk 0:02:55]} 6. d4 {[%clk 0:02:57]}  cxd4 {[%clk 0:02:53]} 7. Qxd4 {[%clk 0:02:58]}  e5 {[%clk 0:02:48]} 8. Qd3 {[%clk 0:02:58]}  Nf6 {[%clk 0:02:48]} 9. c4 {[%clk 0:02:58]}  Be7 {[%clk 0:02:48]} 10. Nc3 {[%clk 0:02:58]}  O-O {[%clk 0:02:47]} 11. Rd1 {[%clk 0:02:57]}  Rc8 {[%clk 0:02:46]} 12. Be3 {[%clk 0:02:51]}  Qc7 {[%clk 0:02:38]} 13. Rac1 {[%clk 0:02:40]}  Rfd8 {[%clk 0:02:02]} 14. b3 {[%clk 0:02:36]}  h6 {[%clk 0:01:59]} 15. h3 {[%clk 0:02:36]}  Bc6 {[%clk 0:01:58]} 16. a4 {[%clk 0:02:25]}  Qb8 {[%clk 0:01:47]} 17. Nh4 {[%clk 0:02:17]}  Bf8 {[%clk 0:01:34]} 18. Nf5 {[%clk 0:02:15]}  Kh7 {[%clk 0:01:34]} 19. Bb6 {[%clk 0:02:09]}  Rd7 {[%clk 0:01:30]} 20. b4 {[%clk 0:01:56]}  g6 {[%clk 0:01:29]} 21. Ne3 {[%clk 0:01:56]}  Kg7 {[%clk 0:01:23]} 22. b5 {[%clk 0:01:53]}  axb5 {[%clk 0:01:18]} 23. axb5 {[%clk 0:01:53]}  d5 {[%clk 0:01:02]} 24. exd5 {[%clk 0:01:41]}  Qd6 {[%clk 0:00:36]} 25. dxc6 {[%clk 0:01:11]}  bxc6 {[%clk 0:00:37]} 26. Qxd6 {[%clk 0:01:10]}  Rxd6 {[%clk 0:00:26]} 27. Rxd6 {[%clk 0:01:09]}  Bxd6 {[%clk 0:00:27]} 28. c5 {[%clk 0:01:03]}  Bf8 {[%clk 0:00:24]} 29. bxc6 {[%clk 0:00:59]}  Rxc6 {[%clk 0:00:23]} 30. Na4 {[%clk 0:00:56]}  Ne4 {[%clk 0:00:21]} 31. f3 {[%clk 0:00:54]}  Nd6 {[%clk 0:00:17]} 32. Nc4 {[%clk 0:00:51]}  Nb7 {[%clk 0:00:15]} 33. Nxe5 {[%clk 0:00:49]}  Rc8 {[%clk 0:00:16]} 34. c6 {[%clk 0:00:48]}  Nd8 {[%clk 0:00:13]} 35. Bxd8 {[%clk 0:00:44]}  Rxd8 {[%clk 0:00:14]} 36. c7 {[%clk 0:00:43]}  Rc8 {[%clk 0:00:13]} 37. Nb6 {[%clk 0:00:43]}  Ba3 {[%clk 0:00:13]} 38. Nxc8 {[%clk 0:00:42]}  Bxc1 {[%clk 0:00:14]} 39. Nd6 {[%clk 0:00:41]}  Bf4 {[%clk 0:00:14]} 40. c8=Q {[%clk 0:00:38]}  Bxe5 {[%clk 0:00:14]} 41. Qd7 {[%clk 0:00:38]}  Bxd6 {[%clk 0:00:14]} 42. Qxd6 {[%clk 0:00:38]}  h5 {[%clk 0:00:15]} 43. h4 {[%clk 0:00:38]}  g5 {[%clk 0:00:15]} 44. hxg5 {[%clk 0:00:38]}  h4 {[%clk 0:00:15]} 45. Qh6+ {[%clk 0:00:37]}  Kg8 {[%clk 0:00:16]} 46. g6 {[%clk 0:00:35]}  fxg6 {[%clk 0:00:15]} 47. Qxg6+ {[%clk 0:00:35]}  Kh8 {[%clk 0:00:16]} 48. Qh6+ {[%clk 0:00:35]}  Kg8 {[%clk 0:00:16]} 49. Qxh4 {[%clk 0:00:35]}  Kg7 {[%clk 0:00:17]} 50. f4 {[%clk 0:00:35]}  Kg6 {[%clk 0:00:17]} 51. g4 {[%clk 0:00:34]}  Kg7 {[%clk 0:00:18]} 52. g5 {[%clk 0:00:34]}  Kg6 {[%clk 0:00:17]} 53. Qh6+ {[%clk 0:00:35]}  Kf7 {[%clk 0:00:17]} 54. g6+ {[%clk 0:00:35]}  Kf6 {[%clk 0:00:08]} 55. g7+ {[%clk 0:00:34]}  Kf7 {[%clk 0:00:09]} 56. Qh7 {[%clk 0:00:33]}  Kf6 {[%clk 0:00:09]} 57. Kg2 {[%clk 0:00:28]} 1-0


[Site "https://www.chess.com"]

[Event "Titled Tuesday Blitz January 03 Early 2023"]
[White "Gnechko, Ruslan"]
[Black "Bikuzhin, Maksim"]
[WhiteFideId "14135868"]
[BlackFideId "24128015"]
[WhiteElo "2132"]
[BlackElo "2279"]
[Result "1-0"]
[Round "01"]
[TimeControl "180+2"]
[Date "2023.01.03"]
[WhiteClock "0:00:36"]
[BlackClock "0:00:23"]

1. d4 {[%clk 0:02:51]}  Nf6 {[%clk 0:02:59]} 2. c4 {[%clk 0:02:50]}  e6 {[%clk 0:02:58]} 3. g3 {[%clk 0:02:50]}  c5 {[%clk 0:02:55]} 4. Nf3 {[%clk 0:02:47]}  cxd4 {[%clk 0:02:53]} 5. Nxd4 {[%clk 0:02:48]}  a6 {[%clk 0:02:50]} 6. Bg2 {[%clk 0:02:47]}  Qc7 {[%clk 0:02:48]} 7. Nc3 {[%clk 0:02:33]}  Be7 {[%clk 0:02:46]} 8. O-O {[%clk 0:02:33]}  O-O {[%clk 0:02:44]} 9. b3 {[%clk 0:02:26]}  d6 {[%clk 0:02:42]} 10. Bb2 {[%clk 0:02:25]}  Bd7 {[%clk 0:02:40]} 11. Rc1 {[%clk 0:02:26]}  Re8 {[%clk 0:02:36]} 12. Qd2 {[%clk 0:02:25]}  Bf8 {[%clk 0:02:34]} 13. Rfd1 {[%clk 0:02:22]}  Nc6 {[%clk 0:02:24]} 14. Nd5 {[%clk 0:02:21]}  Qd8 {[%clk 0:02:24]} 15. Nxf6+ {[%clk 0:02:19]}  gxf6 {[%clk 0:02:24]} 16. Nxc6 {[%clk 0:02:15]}  Bxc6 {[%clk 0:02:23]} 17. Bxc6 {[%clk 0:02:14]}  bxc6 {[%clk 0:02:23]} 18. Qf4 {[%clk 0:02:14]}  f5 {[%clk 0:02:14]} 19. c5 {[%clk 0:02:02]}  d5 {[%clk 0:02:08]} 20. Qe5 {[%clk 0:02:01]}  f6 {[%clk 0:02:06]} 21. Qxf6 {[%clk 0:02:01]}  Qxf6 {[%clk 0:02:06]} 22. Bxf6 {[%clk 0:02:02]}  Kf7 {[%clk 0:02:05]} 23. Be5 {[%clk 0:02:01]}  Ra7 {[%clk 0:01:57]} 24. f3 {[%clk 0:02:00]}  Rb7 {[%clk 0:01:52]} 25. e4 {[%clk 0:01:59]}  Rb5 {[%clk 0:01:50]} 26. Bd6 {[%clk 0:01:40]}  Bg7 {[%clk 0:01:48]} 27. e5 {[%clk 0:01:40]}  Bh6 {[%clk 0:01:38]} 28. f4 {[%clk 0:01:39]}  Ra8 {[%clk 0:01:33]} 29. Rc3 {[%clk 0:01:34]}  Rb4 {[%clk 0:01:26]} 30. a3 {[%clk 0:01:33]}  Re4 {[%clk 0:01:23]} 31. Kf2 {[%clk 0:01:34]}  a5 {[%clk 0:01:20]} 32. Re3 {[%clk 0:01:22]}  Ra7 {[%clk 0:01:12]} 33. Rxe4 {[%clk 0:01:21]}  fxe4 {[%clk 0:01:12]} 34. Ke3 {[%clk 0:01:19]}  Rb7 {[%clk 0:01:12]} 35. Rb1 {[%clk 0:01:19]}  Kg6 {[%clk 0:01:04]} 36. b4 {[%clk 0:01:13]}  Rb5 {[%clk 0:00:48]} 37. Bc7 {[%clk 0:01:08]}  a4 {[%clk 0:00:46]} 38. Bb6 {[%clk 0:01:02]}  Kf5 {[%clk 0:00:44]} 39. h3 {[%clk 0:01:01]}  Bf8 {[%clk 0:00:41]} 40. Rf1 {[%clk 0:01:00]}  h5 {[%clk 0:00:38]} 41. Rg1 {[%clk 0:00:56]}  Bh6 {[%clk 0:00:37]} 42. g4+ {[%clk 0:00:55]}  Kg6 {[%clk 0:00:34]} 43. gxh5+ {[%clk 0:00:51]}  Kxh5 {[%clk 0:00:32]} 44. Rg4 {[%clk 0:00:51]}  Bf8 {[%clk 0:00:24]} 45. Rg8 {[%clk 0:00:43]}  Bh6 {[%clk 0:00:23]} 46. Re8 {[%clk 0:00:36]} 1-0


[Site "https://www.chess.com"]

[Event "Titled Tuesday Blitz January 03 Early 2023"]
[White "Rustemov, Alexander"]
[Black "Pein, Jonathan"]
[WhiteFideId "4119002"]
[BlackFideId "417092"]
[WhiteElo "2525"]
[BlackElo "2265"]
[Result "1-0"]
[Round "01"]
[TimeControl "180+2"]
[Date "2023.01.03"]
[WhiteClock "0:00:17"]
[BlackClock "0:00:03"]

1. d4 {[%clk 0:03:00]}  d5 {[%clk 0:02:58]} 2. c4 {[%clk 0:03:01]}  Nc6 {[%clk 0:02:58]} 3. Nf3 {[%clk 0:03:00]}  Bg4 {[%clk 0:02:57]} 4. cxd5 {[%clk 0:03:00]}  Bxf3 {[%clk 0:02:57]} 5. gxf3 {[%clk 0:03:01]}  Qxd5 {[%clk 0:02:57]} 6. e3 {[%clk 0:03:02]}  e5 {[%clk 0:02:52]} 7. Nc3 {[%clk 0:03:02]}  Bb4 {[%clk 0:02:52]} 8. Bd2 {[%clk 0:03:02]}  Bxc3 {[%clk 0:02:52]} 9. bxc3 {[%clk 0:03:03]}  Nge7 {[%clk 0:02:47]} 10. Rb1 {[%clk 0:03:00]}  O-O {[%clk 0:02:38]} 11. Bg2 {[%clk 0:02:55]}  Qxa2 {[%clk 0:02:37]} 12. Rxb7 {[%clk 0:02:41]}  exd4 {[%clk 0:02:37]} 13. cxd4 {[%clk 0:02:38]}  Qa6 {[%clk 0:02:34]} 14. Rb1 {[%clk 0:02:30]}  Rfe8 {[%clk 0:02:02]} 15. Bf1 {[%clk 0:02:22]}  Qa2 {[%clk 0:01:51]} 16. Qb3 {[%clk 0:02:15]}  Qxb3 {[%clk 0:01:40]} 17. Rxb3 {[%clk 0:02:16]}  Nf5 {[%clk 0:01:21]} 18. Kd1 {[%clk 0:02:09]}  Rab8 {[%clk 0:01:20]} 19. Rxb8 {[%clk 0:02:05]}  Rxb8 {[%clk 0:01:21]} 20. Bd3 {[%clk 0:02:03]}  Nd6 {[%clk 0:01:19]} 21. Kc2 {[%clk 0:01:55]}  a5 {[%clk 0:01:11]} 22. Ra1 {[%clk 0:01:52]}  Kf8 {[%clk 0:01:00]} 23. Bxa5 {[%clk 0:01:48]}  Ra8 {[%clk 0:00:55]} 24. Bc3 {[%clk 0:01:47]}  Nb4+ {[%clk 0:00:54]} 25. Kd2 {[%clk 0:01:46]}  Rxa1 {[%clk 0:00:54]} 26. Bxa1 {[%clk 0:01:45]}  Ke7 {[%clk 0:00:23]} 27. Be2 {[%clk 0:01:32]}  h5 {[%clk 0:00:21]} 28. Bc3 {[%clk 0:01:18]}  Nd5 {[%clk 0:00:21]} 29. Ba5 {[%clk 0:01:17]}  Nb6 {[%clk 0:00:19]} 30. Kd3 {[%clk 0:01:12]}  Nd5 {[%clk 0:00:18]} 31. f4 {[%clk 0:01:09]}  Kd7 {[%clk 0:00:17]} 32. Bxh5 {[%clk 0:01:07]}  g6 {[%clk 0:00:14]} 33. Bf3 {[%clk 0:01:07]}  Nf6 {[%clk 0:00:14]} 34. e4 {[%clk 0:01:04]}  Nfe8 {[%clk 0:00:11]} 35. d5 {[%clk 0:00:59]}  Nb7 {[%clk 0:00:10]} 36. Bb4 {[%clk 0:00:57]}  c6 {[%clk 0:00:10]} 37. dxc6+ {[%clk 0:00:47]}  Kxc6 {[%clk 0:00:11]} 38. h4 {[%clk 0:00:41]}  Kd7 {[%clk 0:00:11]} 39. h5 {[%clk 0:00:41]}  gxh5 {[%clk 0:00:11]} 40. Bxh5 {[%clk 0:00:40]}  Nd8 {[%clk 0:00:12]} 41. f5 {[%clk 0:00:37]}  Nf6 {[%clk 0:00:11]} 42. Bf3 {[%clk 0:00:35]}  Nc6 {[%clk 0:00:11]} 43. Bc3 {[%clk 0:00:36]}  Ne8 {[%clk 0:00:12]} 44. e5 {[%clk 0:00:34]}  Nc7 {[%clk 0:00:08]} 45. Ke3 {[%clk 0:00:29]}  Nb5 {[%clk 0:00:06]} 46. Bb2 {[%clk 0:00:27]}  Nc7 {[%clk 0:00:05]} 47. Kf4 {[%clk 0:00:26]}  Ne7 {[%clk 0:00:06]} 48. Be4 {[%clk 0:00:23]}  Ncd5+ {[%clk 0:00:06]} 49. Kf3 {[%clk 0:00:23]}  Nc7 {[%clk 0:00:04]} 50. Bd4 {[%clk 0:00:22]}  Nc6 {[%clk 0:00:05]} 51. Bc3 {[%clk 0:00:21]}  Ne7 {[%clk 0:00:03]} 52. Kg4 {[%clk 0:00:20]}  Ned5 {[%clk 0:00:04]} 53. Bd4 {[%clk 0:00:19]}  Ne7 {[%clk 0:00:03]} 54. f4 {[%clk 0:00:19]}  Nc6 {[%clk 0:00:03]} 55. Bc3 {[%clk 0:00:19]}  Ne7 {[%clk 0:00:04]} 56. f6 {[%clk 0:00:19]}  Ned5 {[%clk 0:00:03]} 57. Bd4 {[%clk 0:00:19]}  Ke6 {[%clk 0:00:03]} 58. Bf5# {[%clk 0:00:17]} 1-0


[Site "https://www.chess.com"]

[Event "Titled Tuesday Blitz January 03 Early 2023"]
[White "Harsh Suresh"]
[Black "Rengifo Blancas, Renzo Jhonathan"]
[WhiteFideId "45018464"]
[BlackFideId "3807185"]
[WhiteElo "2298"]
[BlackElo "2131"]
[Result "1-0"]
[Round "01"]
[TimeControl "180+2"]
[Date "2023.01.03"]
[WhiteClock "0:00:43"]
[BlackClock "0:00:07"]

1. e4 {[%clk 0:02:59]}  e5 {[%clk 0:02:41]} 2. Nf3 {[%clk 0:02:58]}  Nc6 {[%clk 0:02:41]} 3. Bb5 {[%clk 0:02:58]}  Nd4 {[%clk 0:02:40]} 4. Nxd4 {[%clk 0:02:50]}  exd4 {[%clk 0:02:41]} 5. d3 {[%clk 0:02:50]}  Bc5 {[%clk 0:02:41]} 6. Qg4 {[%clk 0:02:43]}  Qf6 {[%clk 0:02:33]} 7. O-O {[%clk 0:02:39]}  Ne7 {[%clk 0:02:33]} 8. Bg5 {[%clk 0:02:22]}  Qe6 {[%clk 0:02:32]} 9. Qxe6 {[%clk 0:02:20]}  fxe6 {[%clk 0:02:32]} 10. Nd2 {[%clk 0:02:19]}  h6 {[%clk 0:02:30]} 11. Bf4 {[%clk 0:02:11]}  c6 {[%clk 0:02:26]} 12. Ba4 {[%clk 0:02:10]}  O-O {[%clk 0:02:26]} 13. Bg3 {[%clk 0:02:08]}  b5 {[%clk 0:02:24]} 14. Bb3 {[%clk 0:02:08]}  a5 {[%clk 0:02:09]} 15. a4 {[%clk 0:02:07]}  Bb7 {[%clk 0:02:01]} 16. Nf3 {[%clk 0:01:54]}  Ng6 {[%clk 0:01:55]} 17. Ra2 {[%clk 0:01:42]}  d5 {[%clk 0:01:27]} 18. Rfa1 {[%clk 0:01:36]}  b4 {[%clk 0:01:22]} 19. Re1 {[%clk 0:01:37]}  Rfe8 {[%clk 0:01:09]} 20. Raa1 {[%clk 0:01:35]}  Kf8 {[%clk 0:00:51]} 21. Re2 {[%clk 0:01:35]}  Re7 {[%clk 0:00:48]} 22. Rae1 {[%clk 0:01:31]}  Rae8 {[%clk 0:00:49]} 23. h4 {[%clk 0:01:19]}  h5 {[%clk 0:00:46]} 24. Ng5 {[%clk 0:01:18]}  Kg8 {[%clk 0:00:40]} 25. Kf1 {[%clk 0:01:10]}  Rf8 {[%clk 0:00:34]} 26. exd5 {[%clk 0:01:07]}  exd5 {[%clk 0:00:33]} 27. Ne6 {[%clk 0:01:05]}  Bb6 {[%clk 0:00:22]} 28. Nxf8 {[%clk 0:01:03]}  Rxe2 {[%clk 0:00:22]} 29. Nxg6 {[%clk 0:01:02]}  Rxe1+ {[%clk 0:00:22]} 30. Kxe1 {[%clk 0:01:02]}  c5 {[%clk 0:00:21]} 31. Bxd5+ {[%clk 0:00:59]}  Bxd5 {[%clk 0:00:21]} 32. Ne7+ {[%clk 0:01:00]}  Kf7 {[%clk 0:00:22]} 33. Nxd5 {[%clk 0:01:01]}  Bd8 {[%clk 0:00:22]} 34. Nf4 {[%clk 0:00:55]}  g6 {[%clk 0:00:21]} 35. Ne2 {[%clk 0:00:56]}  Ke6 {[%clk 0:00:21]} 36. Nc1 {[%clk 0:00:56]}  Kd5 {[%clk 0:00:20]} 37. Nb3 {[%clk 0:00:54]}  c4 {[%clk 0:00:21]} 38. dxc4+ {[%clk 0:00:52]}  Kxc4 {[%clk 0:00:22]} 39. Nd2+ {[%clk 0:00:52]}  Kd5 {[%clk 0:00:21]} 40. Ke2 {[%clk 0:00:52]}  g5 {[%clk 0:00:20]} 41. hxg5 {[%clk 0:00:48]}  Bxg5 {[%clk 0:00:21]} 42. Kd3 {[%clk 0:00:48]}  Bd8 {[%clk 0:00:15]} 43. Nb3 {[%clk 0:00:48]}  h4 {[%clk 0:00:15]} 44. Bh2 {[%clk 0:00:45]}  Bb6 {[%clk 0:00:14]} 45. f3 {[%clk 0:00:45]}  Bc7 {[%clk 0:00:05]} 46. Bxc7 {[%clk 0:00:44]}  h3 {[%clk 0:00:06]} 47. gxh3 {[%clk 0:00:43]}  Kc6 {[%clk 0:00:06]} 48. Bxa5 {[%clk 0:00:43]}  Kd7 {[%clk 0:00:07]} 49. Bxb4 {[%clk 0:00:43]} 1-0


[Site "https://www.chess.com"]

[Event "Titled Tuesday Blitz January 03 Early 2023"]
[White "Krivonosov, Oleg"]
[Black "Arpita, Mukherjee"]
[WhiteFideId "11600349"]
[BlackFideId "5056403"]
[WhiteElo "2359"]
[BlackElo "2203"]
[Result "1-0"]
[Round "01"]
[TimeControl "180+2"]
[Date "2023.01.03"]
[WhiteClock "0:01:32"]
[BlackClock "0:00:06"]

1. Nf3 {[%clk 0:03:00]}  Nf6 {[%clk 0:02:54]} 2. c4 {[%clk 0:03:00]}  g6 {[%clk 0:02:53]} 3. Nc3 {[%clk 0:02:59]}  Bg7 {[%clk 0:02:53]} 4. e4 {[%clk 0:02:59]}  d6 {[%clk 0:02:54]} 5. d4 {[%clk 0:03:00]}  O-O {[%clk 0:02:55]} 6. Be2 {[%clk 0:03:00]}  e5 {[%clk 0:02:55]} 7. dxe5 {[%clk 0:03:01]}  dxe5 {[%clk 0:02:54]} 8. Qxd8 {[%clk 0:03:01]}  Rxd8 {[%clk 0:02:55]} 9. Bg5 {[%clk 0:03:01]}  Re8 {[%clk 0:02:55]} 10. Nd5 {[%clk 0:03:00]}  Nxd5 {[%clk 0:02:54]} 11. cxd5 {[%clk 0:03:01]}  c6 {[%clk 0:02:53]} 12. Bc4 {[%clk 0:03:01]}  cxd5 {[%clk 0:02:46]} 13. Bxd5 {[%clk 0:03:02]}  Nc6 {[%clk 0:02:37]} 14. O-O-O {[%clk 0:03:01]}  Bg4 {[%clk 0:02:30]} 15. Kb1 {[%clk 0:03:00]}  Nd4 {[%clk 0:02:24]} 16. Nxd4 {[%clk 0:02:59]}  Bxd1 {[%clk 0:02:23]} 17. Nb5 {[%clk 0:02:59]}  Be2 {[%clk 0:01:51]} 18. Nc7 {[%clk 0:02:57]}  Bd3+ {[%clk 0:01:48]} 19. Ka1 {[%clk 0:02:56]}  Rac8 {[%clk 0:01:41]} 20. Nxe8 {[%clk 0:02:55]}  Rxe8 {[%clk 0:01:42]} 21. Rc1 {[%clk 0:02:52]}  h6 {[%clk 0:01:39]} 22. Be3 {[%clk 0:02:51]}  Re7 {[%clk 0:01:29]} 23. Bxa7 {[%clk 0:02:44]}  Kh7 {[%clk 0:01:24]} 24. Bc5 {[%clk 0:02:40]}  Rc7 {[%clk 0:01:20]} 25. Be3 {[%clk 0:02:40]}  Rd7 {[%clk 0:01:12]} 26. f3 {[%clk 0:02:34]}  f5 {[%clk 0:01:12]} 27. b3 {[%clk 0:02:30]}  g5 {[%clk 0:01:07]} 28. Kb2 {[%clk 0:02:16]}  g4 {[%clk 0:01:00]} 29. Rd1 {[%clk 0:02:06]}  fxe4 {[%clk 0:00:53]} 30. Bxe4+ {[%clk 0:01:58]}  Bxe4 {[%clk 0:00:52]} 31. Rxd7 {[%clk 0:01:58]}  gxf3 {[%clk 0:00:51]} 32. gxf3 {[%clk 0:01:59]}  Bxf3 {[%clk 0:00:50]} 33. Kc2 {[%clk 0:01:57]}  Kg6 {[%clk 0:00:50]} 34. a4 {[%clk 0:01:56]}  Bf6 {[%clk 0:00:44]} 35. a5 {[%clk 0:01:51]}  h5 {[%clk 0:00:39]} 36. b4 {[%clk 0:01:50]}  Kf5 {[%clk 0:00:37]} 37. b5 {[%clk 0:01:45]}  Be4+ {[%clk 0:00:19]} 38. Kd2 {[%clk 0:01:45]}  Bf3 {[%clk 0:00:16]} 39. a6 {[%clk 0:01:41]}  bxa6 {[%clk 0:00:16]} 40. bxa6 {[%clk 0:01:42]}  Bc6 {[%clk 0:00:14]} 41. a7 {[%clk 0:01:38]}  e4 {[%clk 0:00:11]} 42. Rc7 {[%clk 0:01:33]}  Bd5 {[%clk 0:00:06]} 43. Rc5 {[%clk 0:01:32]} 1-0


[Site "https://www.chess.com"]